Cogmind - Beta 12 @@@ ROGUE MODE // 2023.10.09 @ 19:52:06 Player: Figgis Result: Destroyed by P-80 Master with Gamma Rifle Performance ------------- Evolutions (9) 4500 Regions Visited (23) 4600 Robots Destroyed (56) 280 Value Destroyed (2512) 2512 Prototype IDs (20) 400 Alien Tech Used (0) 0 Bonus (478) 478 TOTAL SCORE: 12770 Bonus ------- High Alert Combat Kills 18 Follower Combat Kills 160 Aligned with FarCom 300 Cogmind --------- Core Integrity 0/1600 Matter 22/300 Energy 100/100 System Corruption 9% Temperature Cool (0) Movement Core (50) Location -1/Access Parts ------- > --- POWER (3) -------- (None) > --- PROPULSION (8) --- (None) > --- UTILITY (9) ------ (None) > --- WEAPON (5) ------- (None) > --- INVENTORY (5) ---- Quantum Reactor Quantum Reactor Advanced Force Field Linear Accelerator Tesla Bomb Launcher Peak State ------------ > --- POWER ------------ Micro Fission Core Micro Antimatter Reactor > --- PROPULSION ------- Field Propulsion Array Field Propulsion Array Q-thruster Impulse Thruster Array > --- UTILITY ---------- Improved Coolant Injector Advanced Weight Redist. System Enhanced Optical Array Experimental Terrain Scan Processor Advanced Melee Analysis Suite Advanced Reaction Control System Improved Focal Shield Advanced Shield Generator Advanced Hacking Suite > --- WEAPON ----------- Enhanced Force Lance Enhanced Force Lance Enhanced Force Lance > --- INVENTORY -------- Micro Fission Core Micro Fission Core Field Propulsion Array Advanced Force Field [Rating: 145] Favorites ----------- Power Light Angular Momentum Engine Engine Light Angular Momentum Engine Power Core Micro Fission Core Reactor Micro Antimatter Reactor Propulsion Xenon Bombardment Thruster Treads Biometal Medium Treads Leg Myomer Leg Flight Unit Xenon Bombardment Thruster Utility Advanced Melee Analysis Suite Device Improved Reaction Control System Storage Small Storage Unit Processor Advanced Melee Analysis Suite Hackware System Shield Protection Layered Light Armor Plating Weapon Heavy Pick Energy Gun Small Laser Energy Cannon Nova Cannon Ballistic Gun Light Assault Rifle Ballistic Cannon Linear Accelerator Launcher Grenade Launcher Impact Weapon Makeshift Hammer Slashing Weapon Chainsword Piercing Weapon Heavy Pick Build | -11 -10 -10 -10 -9 -8 -8 -7 -7 -7 -6 -6 -6 -6 -5 -4 -4 -4 -4 -4 -3 -3 -2 -1 ------- Run | Jun Mat Min Exi Min Mat Sto Fac Low Low Fac Ext Cet Arc Fac Fac Was Fac Upp Upp Res Arm Res Acc Slots Evolved 18 | . . . . . 4 . 2 . . 2 . . . 2 2 . . . . 2 . 2 2 Power 2 | . . . . . . . 1 . . . . . . . . . . . . . . . 1 Propulsion 6 | . . . . . 2 . 1 . . . . . . 1 . . . . . 1 . 1 . Utility 7 | . . . . . 2 . . . . 2 . . . 1 1 . . . . 1 . . . Weapon 3 | . . . . . . . . . . . . . . . 1 . . . . . . 1 1 Parts Attached 163 | 6 3 1 2 2 7 10 9 6 2 15 5 2 . 15 . 1 11 . . 13 18 11 24 Power 31 | 1 . . . . . . 2 . . 2 3 . . 4 . . 2 . . 2 4 3 8 Engine 8 | 1 . . . . . . 1 . . 1 2 . . 3 . . . . . . . . . Core 6 | . . . . . . . 1 . . . 1 . . . . . 2 . . 1 . 1 . Reactor 17 | . . . . . . . . . . 1 . . . 1 . . . . . 1 4 2 8 Propulsion 50 | 2 2 . . 1 6 4 2 1 . 3 . 2 . 4 . . 4 . . 4 2 3 10 Treads 4 | 2 . . . . . . . . . . . . . . . . . . . . . . 2 Leg 2 | . . . . . . . . . . . . . . . . . . . . . . . 2 Wheel . | . . . . . . . . . . . . . . . . . . . . . . . . Hover . | . . . . . . . . . . . . . . . . . . . . . . . . Flight 44 | . 2 . . 1 6 4 2 1 . 3 . 2 . 4 . . 4 . . 4 2 3 6 Utility 52 | 1 . 1 1 . . 4 3 4 2 7 2 . . 5 . 1 4 . . 7 7 2 1 Device 30 | . . 1 . . . 2 . 2 2 2 1 . . 3 . 1 3 . . 6 4 2 1 Storage 3 | 1 . . 1 . . . . . . 1 . . . . . . . . . . . . . Processor 4 | . . . . . . 1 . . . 1 1 . . . . . . . . . 1 . . Hackware 5 | . . . . . . 1 1 . . 1 . . . 2 . . . . . . . . . Protection 10 | . . . . . . . 2 2 . 2 . . . . . . 1 . . 1 2 . . Artifact . | . . . . . . . . . . . . . . . . . . . . . . . . Weapon 30 | 2 1 . 1 1 1 2 2 1 . 3 . . . 2 . . 1 . . . 5 3 5 Energy Gun 2 | 1 . . . . . 1 . . . . . . . . . . . . . . . . . Energy Cannon 3 | . . . 1 . . . . . . . . . . . . . 1 . . . . 1 . Ballistic Gun 2 | 1 1 . . . . . . . . . . . . . . . . . . . . . . Ballistic Cannon 6 | . . . . . . . . . . . . . . . . . . . . . . 1 5 Launcher 2 | . . . . . 1 . . . . . . . . . . . . . . . . 1 . Special Weapon . | . . . . . . . . . . . . . . . . . . . . . . . . Impact Weapon 2 | . . . . 1 . 1 . . . . . . . . . . . . . . . . . Slashing Weapon 6 | . . . . . . . 2 1 . 1 . . . . . . . . . . 2 . . Piercing Weapon 7 | . . . . . . . . . . 2 . . . 2 . . . . . . 3 . . Special Melee Weapon . | . . . . . . . . . . . . . . . . . . . . . . . . Unidentified Prototypes 14 | . . 1 1 . 1 1 . . . 1 . . . 1 . . 1 . . 1 2 4 . Parts Lost 57 | . . . . 1 3 2 . 1 . 1 1 4 2 5 . . . . . . 12 15 10 Power 11 | . . . . . . . . . . . 1 1 . 1 . . . . . . 1 3 4 Propulsion 26 | . . . . 1 3 1 . 1 . . . 2 2 3 . . . . . . 3 4 6 Utility 16 | . . . . . . 1 . . . 1 . . . 1 . . . . . . 6 7 . Weapon 4 | . . . . . . . . . . . . 1 . . . . . . . . 2 1 . Highest Loss Streak 9 | . . . . 1 3 1 . 1 . 1 1 4 2 5 . . . . . . 7 5 9 To Critical Strikes . | . . . . . . . . . . . . . . . . . . . . . . . . Average Slot Usage (%) 75 | . 76 71 71 60 60 74 56 99 100 99 99 96 82 79 52 52 80 84 84 82 78 34 28 Engine 3 | . 14 14 14 . . . . 7 7 6 4 6 6 7 . . . . . . . . . Core 2 | . . . . . . . 3 7 7 6 6 5 . . . . 9 10 10 5 1 1 . Reactor 1 | . . . . . . . . . . . . . . . . . . . . 2 7 4 7 Flight 24 | . 14 28 28 28 33 35 26 37 38 33 33 31 29 24 15 15 19 21 21 20 18 8 8 Device 11 | . . . . . . . . 5 7 7 13 13 13 13 10 10 21 21 21 23 22 13 1 Storage 2 | . 7 . 10 14 9 9 3 . . . . . . . . . . . . . . . . Processor 7 | . . . . . . 7 7 7 7 10 6 13 13 11 10 10 10 10 10 9 8 3 . Hackware 6 | . . . . . . 6 3 7 7 13 13 13 13 11 5 5 5 5 5 4 3 . . Protection 2 | . . . . . . . 2 8 7 6 6 . . . . . 3 5 5 4 4 1 . Energy Gun 1 | . 14 14 14 14 6 . . . . . . . . . . . . . . . . . . Impact Weapon 1 | . . . . 3 9 9 . . . . . . . . . . . . . . . . . Slashing Weapon 1 | . . . . . . . 7 15 15 . . . . . . . . . . . 3 . . Piercing Weapon 5 | . . . . . . . . . . 12 13 11 6 7 10 10 10 10 10 9 4 . . Naked Turns 127 | . . . . . . . . . . . . . . . . . . . . . . 67 60 Heaviest Build 115 | 11 11 5 9 9 11 16 22 22 22 25 29 25 16 31 7 7 25 25 25 32 56 43 115 Greatest Support 63 | 40 40 8 8 8 16 16 23 24 24 29 29 29 29 44 26 17 49 49 49 63 63 46 62 Greatest Overweight (x) 4 | . . . 1 2 2 1 1 1 . 1 . . . . . . . . . . 1 . 4 Average Overweight (x) . | . . . . . . . . . . . . . . . . . . . . . . . . Largest Inventory Capacity 15 | 8 8 5 8 8 8 8 8 5 5 15 5 5 5 5 5 5 5 5 5 5 5 5 5 Average Capacity 5 | 6 6 5 7 8 8 8 6 5 5 5 5 5 5 5 5 5 5 5 5 5 5 5 5 Most Carried 8 | 5 5 5 6 7 8 8 8 5 5 5 5 5 3 5 4 5 5 4 5 5 5 5 5 Average Carried 5 | 2 3 4 5 6 6 7 6 4 4 4 4 4 3 4 4 4 4 4 4 4 4 3 4 Final Capacity 8 | 8 5 5 8 8 8 8 5 5 5 5 5 5 5 5 5 5 5 5 5 5 5 5 5 Final Carried 8 | 2 5 5 6 6 7 8 5 5 5 5 5 3 3 4 4 5 4 4 5 5 2 5 5 Class Distribution -------------------- 44% | Sprinter 33% | Hacker-Sprinter 16% | Mutant 3% | Scavenger-Sprinter Dominant Class ---------------- Mutant | -10/Materials Mutant | -10/Mines Mutant | -10/Exiles Mutant | -9/Mines Scavenger-Sprinter | -8/Materials Sprinter | -8/Storage Sprinter | -7/Factory Scavenger-Sprinter | -7/Lower Caves Sprinter | -7/Lower Caves Hacker-Sprinter | -6/Factory Hacker-Sprinter | -6/Extension Hacker-Sprinter | -6/Cetus Hacker-Sprinter | -6/Archives Hacker-Sprinter | -5/Factory Hacker-Sprinter | -4/Factory Sprinter | -4/Waste Sprinter | -4/Factory Sprinter | -4/Upper Caves Sprinter | -4/Upper Caves Sprinter | -3/Research Sprinter | -3/Armory Mutant | -2/Research Mutant | -1/Access Resources | -11 -10 -10 -10 -9 -8 -8 -7 -7 -7 -6 -6 -6 -6 -5 -4 -4 -4 -4 -4 -3 -3 -2 -1 ----------- Run | Jun Mat Min Exi Min Mat Sto Fac Low Low Fac Ext Cet Arc Fac Fac Was Fac Upp Upp Res Arm Res Acc Matter Collected 1724 | 209 45 . . 50 . 102 . 140 161 64 126 . . 23 . . 108 27 19 50 351 75 174 Remotely . | . . . . . . . . . . . . . . . . . . . . . . . . Salvage Created 2159 | . 45 . . 31 19 16 30 70 . 81 506 . . 56 . . 43 . . 50 798 286 128 Parts 178 | . 7 . . 3 4 . 3 6 . 9 30 . . 4 . . 3 . . 4 75 22 8 Haulers Intercepted . | . . . . . . . . . . . . . . . . . . . . . . . . Recyclers Shooed . | . . . . . . . . . . . . . . . . . . . . . . . . Parts Field Recycled . | . . . . . . . . . . . . . . . . . . . . . . . . Retrieved Matter . | . . . . . . . . . . . . . . . . . . . . . . . . Parts Self-Destructed 3 | . . . . . . . . . 3 . . . . . . . . . . . . . . Prevented 5 | . . . . . . . . . 4 . . . . . . . . 1 . . . . . Kills | -11 -10 -10 -10 -9 -8 -8 -7 -7 -7 -6 -6 -6 -6 -5 -4 -4 -4 -4 -4 -3 -3 -2 -1 ------- Run | Jun Mat Min Exi Min Mat Sto Fac Low Low Fac Ext Cet Arc Fac Fac Was Fac Upp Upp Res Arm Res Acc Combat Hostiles Destroyed 46 | . 3 . . 3 4 1 . 1 . 1 9 . . . . . . . . . 13 5 6 Melee 26 | . . . . 2 . . . 1 . 1 9 . . . . . . . . . 13 . . Guns 3 | . 3 . . . . . . . . . . . . . . . . . . . . . . Cannons 10 | . . . . . . . . . . . . . . . . . . . . . . 4 6 AOE 5 | . . . . . 4 . . . . . . . . . . . . . . . . 1 . Classes Destroyed 11 | . 1 . . . 2 . 1 1 . 1 2 . . . . . . . . . 3 . . Operator 4 | . . . . . . . 1 . . 1 1 . . 1 . . . . . . . . . Watcher 6 | . . . . . . . . . . . 2 . . 1 . . 1 . . 1 1 . . Swarmer 17 | . 3 . . 3 . 1 . . . . 4 . . . . . . . . . 1 . 5 Cutter 4 | . . . . . 2 . . . . . . . . . . . . . . . . 2 . Saboteur 1 | . . . . . . . . . . . . . . . . . . . . . 1 . . Grunt 7 | . . . . . 2 . . . . . 4 . . . . . . . . . . 1 . Protector 3 | . . . . . . . . . . . . . . . . . . . . . 3 . . Sentry 1 | . . . . . . . . . . . 1 . . . . . . . . . . . . Hunter 1 | . . . . . . . . . . 1 . . . . . . . . . . . . . Programmer 11 | . . . . . . . . . . . . . . . . . . . . . 8 2 1 Mutant 1 | . . . . . . . . 1 . . . . . . . . . . . . . . . Best Kill Streak 6 | . 3 . . 3 4 1 1 1 . 1 5 . . 1 . . 1 . . 1 6 3 5 Combat Bots Only 6 | . 3 . . 3 4 1 . 1 . 1 3 . . . . . . . . . 6 3 5 Max Kills in Single Turn 2 | . 1 . . 1 2 1 1 1 . 1 1 . . 1 . . 1 . . 1 1 1 1 Gunslinging . | . . . . . . . . . . . . . . . . . . . . . . . . Exploded 2 | . . . . . 2 . . . . . . . . . . . . . . . . 1 . Melee 1 | . . . . 1 . . . 1 . 1 1 . . . . . . . . . 1 . . Uniques/NPCs Destroyed . | . . . . . . . . . . . . . . . . . . . . . . . . Combat | -11 -10 -10 -10 -9 -8 -8 -7 -7 -7 -6 -6 -6 -6 -5 -4 -4 -4 -4 -4 -3 -3 -2 -1 -------- Run | Jun Mat Min Exi Min Mat Sto Fac Low Low Fac Ext Cet Arc Fac Fac Was Fac Upp Upp Res Arm Res Acc Damage Taken 9725 | . 65 . . 70 310 180 28 250 . 51 472 338 234 495 . . 164 80 . 33 2049 2188 2718 Core 4091 | . 16 . . 10 95 47 11 107 . . 130 115 125 163 . . 29 17 . 13 396 1209 1608 Absorbed by Shields 939 | . . . . . . . . . . . 51 . . . . . 59 30 . 12 320 . 467 Redirected to Shielding 78 | . . . . . . . . . . . . . . . . . 37 28 . 13 . . . Regen/Repaired (Parts) 218 | . . . . . . 118 . . . . . . . 52 . . 48 . . . . . . Core Remaining (%) 73 | 100 . . . 89 . 74 . . 83 . . . 56 83 . . . . 96 . 68 16 . Volleys Fired 36 | . 4 . . . 7 . . . . . . . . . . . . . . . . 12 13 Largest 4 | . 2 . . . 1 . . . . . . . . . . . . . . . . 1 4 Hottest 264 | . 60 . . . 40 . . . . . . . . . . . . . . . . 113 264 Shots Fired 56 | . 8 . . . 7 . . . . . . . . . . . . . . . . 12 29 Gun 10 | . 8 . . . 2 . . . . . . . . . . . . . . . . . . Cannon 38 | . . . . . . . . . . . . . . . . . . . . . . 9 29 Launcher 8 | . . . . . 5 . . . . . . . . . . . . . . . . 3 . Special . | . . . . . . . . . . . . . . . . . . . . . . . . Kinetic 33 | . 4 . . . . . . . . . . . . . . . . . . . . . 29 Thermal 15 | . 4 . . . 2 . . . . . . . . . . . . . . . . 9 . Explosive 5 | . . . . . 5 . . . . . . . . . . . . . . . . . . Electromagnetic 3 | . . . . . . . . . . . . . . . . . . . . . . 3 . Robot Hit Streak 5 | . 1 . . . 5 . . . . . . . . . . . . . . . . 5 4 Robot Miss Streak 3 | . 1 . . . 1 . . . . . . . . . . . . . . . . 3 3 Penetration Max . | . . . . . . . . . . . . . . . . . . . . . . . . Secondary Targets . | . . . . . . . . . . . . . . . . . . . . . . . . Shots Hit Robots 104 | . 4 . . 4 6 2 2 3 . 3 23 . . 4 . . 3 . . 1 27 8 14 Core Hits 68 | . 3 . . 2 12 . 1 2 . 1 14 . . 2 . . 2 . . 1 14 7 7 Critical Kills . | . . . . . . . . . . . . . . . . . . . . . . . . Critical Parts Destroyed . | . . . . . . . . . . . . . . . . . . . . . . . . Critical Strikes 4 | . . . . . . . . . . . 2 . . . . . 1 . . 1 . . . Impale 4 | . . . . . . . . . . . 2 . . . . . 1 . . 1 . . . Melee Attacks 256 | . . . . 9 1 7 2 6 5 3 58 40 23 21 . . 9 1 1 5 65 . . Impact 17 | . . . . 9 1 7 . . . . . . . . . . . . . . . . . Slashing 64 | . . . . . . . 2 6 5 2 . . . . . . . . . . 49 . . Piercing 175 | . . . . . . . . . . 1 58 40 23 21 . . 9 1 1 5 16 . . Sneak Attacks 8 | . . . . . . . . . . 2 2 . . . . . . . . . 4 . . Combat Hostiles 3 | . . . . . . . . . . 2 1 . . . . . . . . . . . . Follow-up Attacks 6 | . . . . . . . . . . 1 1 . . . . . . . . . 4 . . Damage Inflicted 6179 | . 47 . . 139 632 84 115 102 . 191 1108 . . 217 . . 151 . . 51 2216 456 670 Guns 58 | . 47 . . . 11 . . . . . . . . . . . . . . . . . . Cannons 992 | . . . . . . . . . . . . . . . . . . . . . . 339 653 Explosions 726 | . . . . . 621 . . . . . . . . . . . . . . . . 105 . Melee 4370 | . . . . 139 . 84 115 102 . 191 1108 . . 217 . . 151 . . 51 2212 . . Ramming 33 | . . . . . . . . . . . . . . . . . . . . . 4 12 17 Kinetic 688 | . 35 . . . . . . . . . . . . . . . . . . . . . 653 Thermal 362 | . 12 . . . 11 . . . . . . . . . . . . . . . . 339 . Explosive 621 | . . . . . 621 . . . . . . . . . . . . . . . . . . Electromagnetic 105 | . . . . . . . . . . . . . . . . . . . . . . 105 . Impact 223 | . . . . 139 . 84 . . . . . . . . . . . . . . . . . Slashing 2342 | . . . . . . . 115 102 . 136 . . . . . . . . . . 1989 . . Piercing 1805 | . . . . . . . . . . 55 1108 . . 217 . . 151 . . 51 223 . . Highest Corruption 37 | . . . . . . . . . . . . 8 10 1 . 5 7 7 7 . 37 3 9 Average Corruption 5 | . . . . . . . . . . . . 7 8 1 . 5 5 7 7 . 7 1 4 Corruption Purged . | . . . . . . . . . . . . . . . . . . . . . . . . Corruption Blocked . | . . . . . . . . . . . . . . . . . . . . . . . . Effects 45 | . . . . . . . . . . . . 1 4 1 . 1 11 4 1 . 16 1 5 Message Errors 9 | . . . . . . . . . . . . . . 1 . . 2 1 . . 4 . 1 Matter Fused 13 | . . . . . . . . . . . . . 2 . . . 3 1 . . 3 . 4 Heat Flow Errors 4 | . . . . . . . . . . . . . . . . . 2 . . . 2 . . Energy Discharges 5 | . . . . . . . . . . . . . 1 . . . 1 1 . . 2 . . Parts Rejected 1 | . . . . . . . . . . . . . . . . 1 . . . . . . . Data Loss (minor) 5 | . . . . . . . . . . . . 1 1 . . . 1 . . . 1 1 . Data Loss (major) 3 | . . . . . . . . . . . . . . . . . 1 1 1 . . . . Alerts 1 | . . . . . . . . . . . . . . . . . 1 . . . . . . Misdirections 4 | . . . . . . . . . . . . . . . . . . . . . 4 . . Overload Shots . | . . . . . . . . . . . . . . . . . . . . . . . . Overflow Damage 645 | . . . . 23 15 31 2 . . 15 109 . . 18 . . . . . . 415 . 17 Projectiles 17 | . . . . . . . . . . . . . . . . . . . . . . . 17 Explosions 15 | . . . . . 15 . . . . . . . . . . . . . . . . . . Melee 613 | . . . . 23 . 31 2 . . 15 109 . . 18 . . . . . . 415 . . Knockbacks 8 | . . . . . . 1 . . . . . . . . . . . . . . . . 7 Impact 1 | . . . . . . 1 . . . . . . . . . . . . . . . . . Kinetic 7 | . . . . . . . . . . . . . . . . . . . . . . . 7 Secondary . | . . . . . . . . . . . . . . . . . . . . . . . . Self-Inflicted Damage 248 | . . . . . 148 . . . . . . . . . . . . . . . 2 91 7 Shots 7 | . . . . . 4 . . . . . . . . . . . . . . . . 3 . Rammed 7 | . . . . . . . . . . . . . . . . . . . . . 1 1 5 Targets Rammed 7 | . . . . . . . . . . . . . . . . . . . . . 1 1 5 Kicked . | . . . . . . . . . . . . . . . . . . . . . . . . Crushed . | . . . . . . . . . . . . . . . . . . . . . . . . Highest Temperature 490 | . . . . . 4 . 18 41 93 172 181 . . 246 . . 400 2 . 7 156 320 490 Average Temperature 49 | . . . . . 2 . 10 12 29 49 41 . . 75 . . 120 2 . 2 21 118 191 Received Heat Transfer 435 | . . . . . 72 45 6 12 . . 84 18 . . . . . 21 . 6 27 81 63 Effects 9 | . . . . . . . . . . . . . . 1 . . 4 . . . . . 4 Shutdowns 2 | . . . . . . . . . . . . . . . . . . . . . . . 2 Energy Bleed 1 | . . . . . . . . . . . . . . 1 . . . . . . . . . Interference 4 | . . . . . . . . . . . . . . . . . 4 . . . . . . Matter Decay 1 | . . . . . . . . . . . . . . . . . . . . . . . 1 Damage (minor) 1 | . . . . . . . . . . . . . . . . . . . . . . . 1 Siege Activations . | . . . . . . . . . . . . . . . . . . . . . . . . Robots Corrupted . | . . . . . . . . . . . . . . . . . . . . . . . . Combat Hostiles . | . . . . . . . . . . . . . . . . . . . . . . . . Parts Fried 1 | . . . . . . . . . . . . . . . . . . . . . . 1 . Impact Corruptions 5 | . . . . 2 . 3 . . . . . . . . . . . . . . . . . Robots Melted . | . . . . . . . . . . . . . . . . . . . . . . . . Combat Hostiles . | . . . . . . . . . . . . . . . . . . . . . . . . Parts Melted 1 | . . . . . . . . . . . . . . . . . . . . . . 1 . Heat Transferred 346 | . 25 . . . 25 . . . . . . . . . . . . . . . . 296 . Parts Sabotaged . | . . . . . . . . . . . . . . . . . . . . . . . . Parts Stolen . | . . . . . . . . . . . . . . . . . . . . . . . . Parts Stripped . | . . . . . . . . . . . . . . . . . . . . . . . . Power Chain Reactions . | . . . . . . . . . . . . . . . . . . . . . . . . Missiles Intercepted . | . . . . . . . . . . . . . . . . . . . . . . . . Alert | -11 -10 -10 -10 -9 -8 -8 -7 -7 -7 -6 -6 -6 -6 -5 -4 -4 -4 -4 -4 -3 -3 -2 -1 ------- Run | Jun Mat Min Exi Min Mat Sto Fac Low Low Fac Ext Cet Arc Fac Fac Was Fac Upp Upp Res Arm Res Acc Peak Influence 458 | . 116 45 . 75 246 158 119 . . 106 312 73 34 87 . 30 172 . . 207 458 408 333 Initial 240 | . . 45 . . 29 103 12 . . 54 16 64 29 11 . . 21 . . 132 108 240 106 Average 94 | . 52 45 . 8 88 79 40 . . 44 116 62 29 21 . 9 78 . . 156 137 298 223 Maximum Alert Level 2 | . . . . . 1 . . . . . 1 . . . . . . . . 1 2 2 1 Low Security (%) 86 | 100 100 100 . 100 87 100 100 . . 100 93 100 100 100 100 100 100 . . 85 82 . 37 Level 1 12 | . . . . . 12 . . . . . 6 . . . . . . . . 14 14 92 62 Level 2 . | . . . . . . . . . . . . . . . . . . . . . 3 7 . Level 3 . | . . . . . . . . . . . . . . . . . . . . . . . . Level 4 . | . . . . . . . . . . . . . . . . . . . . . . . . Level 5 . | . . . . . . . . . . . . . . . . . . . . . . . . High Security . | . . . . . . . . . . . . . . . . . . . . . . . . Max Security . | . . . . . . . . . . . . . . . . . . . . . . . . Squads Dispatched 28 | . . . . . 3 1 1 . . 3 . . . 6 . . 2 . . 1 4 5 2 Investigation 8 | . . . . . 1 . . . . 1 . . . 3 . . 1 . . 1 . 1 . Extermination 9 | . . . . . . . 1 . . 1 . . . 1 . . 1 . . . 3 1 1 Reinforcement 11 | . . . . . 2 1 . . . 1 . . . 2 . . . . . . 1 3 1 Assault . | . . . . . . . . . . . . . . . . . . . . . . . . Garrison . | . . . . . . . . . . . . . . . . . . . . . . . . Intercept . | . . . . . . . . . . . . . . . . . . . . . . . . Searches Triggered 1 | . . . . . . . . . . . . . . . . . . . . . . 1 . Construction Impeded . | . . . . . . . . . . . . . . . . . . . . . . . . Haulers Reinforced . | . . . . . . . . . . . . . . . . . . . . . . . . Active Scanning Responses . | . . . . . . . . . . . . . . . . . . . . . . . . Cargo Convoy Interrupts 1 | . . . . . . . . . . . . . . 1 . . . . . . . . . Stealth | -11 -10 -10 -10 -9 -8 -8 -7 -7 -7 -6 -6 -6 -6 -5 -4 -4 -4 -4 -4 -3 -3 -2 -1 --------- Run | Jun Mat Min Exi Min Mat Sto Fac Low Low Fac Ext Cet Arc Fac Fac Was Fac Upp Upp Res Arm Res Acc Distress Signals 13 | . . . . . 1 3 . . . 1 2 . . . . . . . . . 1 3 2 Communications Jammed . | . . . . . . . . . . . . . . . . . . . . . . . . Distress Signals . | . . . . . . . . . . . . . . . . . . . . . . . . Times Spotted 242 | . 9 . . 4 17 17 5 8 6 7 21 7 . 10 . 5 6 9 . 2 51 31 27 Peak Tracking Total 20 | . 6 . . 4 7 7 4 8 3 5 8 7 . 8 . 5 4 6 . 3 20 15 18 Tactical Retreats 41 | . . . . 1 2 4 2 1 1 2 2 1 . . . . 1 3 . 1 9 8 3 Traps | -11 -10 -10 -10 -9 -8 -8 -7 -7 -7 -6 -6 -6 -6 -5 -4 -4 -4 -4 -4 -3 -3 -2 -1 ------- Run | Jun Mat Min Exi Min Mat Sto Fac Low Low Fac Ext Cet Arc Fac Fac Was Fac Upp Upp Res Arm Res Acc Traps Triggered 9 | . . . . . . 1 . . . . 4 . . 1 1 . . . . 1 . 1 . Indirectly . | . . . . . . . . . . . . . . . . . . . . . . . . Trap Hack Attempts . | . . . . . . . . . . . . . . . . . . . . . . . . Triggered . | . . . . . . . . . . . . . . . . . . . . . . . . Disarmed . | . . . . . . . . . . . . . . . . . . . . . . . . Reprogrammed . | . . . . . . . . . . . . . . . . . . . . . . . . Reused . | . . . . . . . . . . . . . . . . . . . . . . . . Traps Extracted . | . . . . . . . . . . . . . . . . . . . . . . . . Installed . | . . . . . . . . . . . . . . . . . . . . . . . . Triggered 4 | . . . . . . . . . 1 . . . . 2 . . . 1 . . . . . Machines | -11 -10 -10 -10 -9 -8 -8 -7 -7 -7 -6 -6 -6 -6 -5 -4 -4 -4 -4 -4 -3 -3 -2 -1 ---------- Run | Jun Mat Min Exi Min Mat Sto Fac Low Low Fac Ext Cet Arc Fac Fac Was Fac Upp Upp Res Arm Res Acc Machines Disabled 6 | . . . . . 1 1 . . . . . . 1 . . . . . . . 3 . . Max in Single Turn 1 | . . . . . 1 1 . . . . . . 1 . . . . . . . 1 . . Garrison Access 1 | . . . . . . . . . . . . . . 1 . . . . . . . . . Machines Repaired . | . . . . . . . . . . . . . . . . . . . . . . . . Machines Sabotaged . | . . . . . . . . . . . . . . . . . . . . . . . . Overloaded Fab Kills . | . . . . . . . . . . . . . . . . . . . . . . . . Hacking | -11 -10 -10 -10 -9 -8 -8 -7 -7 -7 -6 -6 -6 -6 -5 -4 -4 -4 -4 -4 -3 -3 -2 -1 --------- Run | Jun Mat Min Exi Min Mat Sto Fac Low Low Fac Ext Cet Arc Fac Fac Was Fac Upp Upp Res Arm Res Acc Machines Accessed 65 | . 3 . . . 2 6 6 . 1 12 10 . . 11 . . 4 . . 4 1 4 1 Terminals 40 | . 3 . . . . 5 3 . . 7 9 . . 5 . . 2 . . 2 1 3 . Fabricators 8 | . . . . . . . 2 . . 2 . . . 3 . . . . . 1 . . . Repair Stations 5 | . . . . . 1 1 . . . . . . . 1 . . 1 . . 1 . . . Recycling Units 4 | . . . . . . . . . . 1 1 . . 1 . . . . . . . . 1 Scanalyzers 4 | . . . . . 1 . . . . 2 . . . . . . 1 . . . . . . Garrison Access 3 | . . . . . . . 1 . . . . . . 1 . . . . . . . 1 . Total Hacks 162 | . 5 . . . 10 15 14 . 1 39 26 . . 28 . . 8 . . 6 2 7 1 Successful 72 | . 1 . . . 4 11 4 . 1 18 12 . . 14 . . 5 . . 1 . 1 . Failed 88 | . 4 . . . 6 3 10 . . 21 13 . . 14 . . 3 . . 5 2 6 1 Catastrophic 23 | . 1 . . . 2 1 2 . . 4 3 . . 5 . . 1 . . 1 . 3 . Database Lockouts 2 | . . . . . . 1 . . . . 1 . . . . . . . . . . . . Manual 42 | . 5 . 1 . . 5 10 . . 6 8 . . 4 . . 1 . . . 2 . . Terminals 98 | . 5 . . . . 9 11 . . 21 25 . . 14 . . 3 . . 3 2 5 . Fabricators 13 | . . . . . . . 2 . . 4 . . . 6 . . . . . 1 . . . Repair Stations 22 | . . . . . 6 6 . . . . . . . 6 . . 2 . . 2 . . . Recycling Units 4 | . . . . . . . . . . 1 1 . . 1 . . . . . . . . 1 Scanalyzers 20 | . . . . . 4 . . . . 13 . . . . . . 3 . . . . . . Garrison Access 4 | . . . . . . . 1 . . . . . . 1 . . . . . . . 2 . Terminal Hacks 35 | . 1 . . . . 6 3 . 1 5 12 . . 4 . . 2 . . . . 1 . Robot Analysis 7 | . . . . . . 1 2 . . 1 2 . . 1 . . . . . . . . . Prototype ID Bank 2 | . . . . . . . . . . . 1 . . . . . 1 . . . . . . Open Door 7 | . . . . . . 2 . . 1 . 4 . . . . . . . . . . . . Branch Access Points 5 | . 1 . . . . 1 . . . 1 1 . . 1 . . . . . . . . . Emergency Access Points 1 | . . . . . . . . . . . . . . 1 . . . . . . . . . Fabricator Index 1 | . . . . . . . . . . . . . . 1 . . . . . . . . . Alert Level 1 | . . . . . . . . . . . . . . . . . 1 . . . . . . Unreport Threat 2 | . . . . . . . . . . 1 1 . . . . . . . . . . . . Locate Traps 6 | . . . . . . 2 1 . . 2 1 . . . . . . . . . . . . Dispatch Records 1 | . . . . . . . . . . . . . . . . . . . . . . 1 . Investigation Status 1 | . . . . . . . . . . . 1 . . . . . . . . . . . . Zone Layout 1 | . . . . . . . . . . . 1 . . . . . . . . . . . . Fabricator Hacks 8 | . . . . . . . 1 . . 2 . . . 5 . . . . . . . . . Network Status 1 | . . . . . . . 1 . . . . . . . . . . . . . . . . Load Schematic 3 | . . . . . . . . . . 1 . . . 2 . . . . . . . . . Build 4 | . . . . . . . . . . 1 . . . 3 . . . . . . . . . Repair Station Hacks 13 | . . . . . 2 5 . . . . . . . 3 . . 2 . . 1 . . . Scan Component 9 | . . . . . 2 3 . . . . . . . 2 . . 1 . . 1 . . . Repair 4 | . . . . . . 2 . . . . . . . 1 . . 1 . . . . . . Recycling Unit Hacks 2 | . . . . . . . . . . 1 . . . 1 . . . . . . . . . Report Inventory 2 | . . . . . . . . . . 1 . . . 1 . . . . . . . . . Scanalyzer 13 | . . . . . 2 . . . . 10 . . . . . . 1 . . . . . . Insert Component 7 | . . . . . 1 . . . . 5 . . . . . . 1 . . . . . . Analyze 6 | . . . . . 1 . . . . 5 . . . . . . . . . . . . . Garrison Access Hacks 1 | . . . . . . . . . . . . . . 1 . . . . . . . . . Seal Access 1 | . . . . . . . . . . . . . . 1 . . . . . . . . . Unauthorized Hacks . | . . . . . . . . . . . . . . . . . . . . . . . . Terminals . | . . . . . . . . . . . . . . . . . . . . . . . . Fabricators . | . . . . . . . . . . . . . . . . . . . . . . . . Repair Stations . | . . . . . . . . . . . . . . . . . . . . . . . . Recycling Units . | . . . . . . . . . . . . . . . . . . . . . . . . Scanalyzers . | . . . . . . . . . . . . . . . . . . . . . . . . Garrison Access . | . . . . . . . . . . . . . . . . . . . . . . . . Data Cores Recovered 4 | . . . . . . . 1 . . 1 1 . . 1 . . . . . . . . . Used . | . . . . . . . . . . . . . . . . . . . . . . . . Hacking Detections 52 | . 3 . . . 2 5 5 . . 10 5 . . 9 . . 4 . . 4 1 3 1 Full Trace Events 6 | . . . . . 1 . . . . 1 . . . 2 . . 1 . . . . 1 . Feedback Events . | . . . . . . . . . . . . . . . . . . . . . . . . Feedback Blocked . | . . . . . . . . . . . . . . . . . . . . . . . . Robot Schematics Acquired . | . . . . . . . . . . . . . . . . . . . . . . . . Robots Built . | . . . . . . . . . . . . . . . . . . . . . . . . Authchips . | . . . . . . . . . . . . . . . . . . . . . . . . Time . | . . . . . . . . . . . . . . . . . . . . . . . . Total Robot Build Rating . | . . . . . . . . . . . . . . . . . . . . . . . . Part Schematics Acquired 5 | . . . . . . . . . . 5 . . . . . . . . . . . . . Parts Built 8 | . . . . . . . . . . 2 . . . 6 . . . . . . . . . Authchips . | . . . . . . . . . . . . . . . . . . . . . . . . Time 279 | . . . . . . . . . . 84 . . . 195 . . . . . . . . . Total Part Build Rating 42 | . . . . . . . . . . 8 . . . 34 . . . . . . . . . Parts Repaired 4 | . . . . . . 2 . . . . . . . 1 . . 1 . . . . . . Time 204 | . . . . . . 76 . . . . . . . 25 . . 103 . . . . . . Parts Recycled . | . . . . . . . . . . . . . . . . . . . . . . . . Recycled Matter . | . . . . . . . . . . . . . . . . . . . . . . . . Retrieved Matter . | . . . . . . . . . . . . . . . . . . . . . . . . Retrieved Components . | . . . . . . . . . . . . . . . . . . . . . . . . Parts Scanalyzed 7 | . . . . . 1 . . . . 5 . . . . . . 1 . . . . . . Part Schematics Acquired 5 | . . . . . . . . . . 5 . . . . . . . . . . . . . Parts Damaged . | . . . . . . . . . . . . . . . . . . . . . . . . Bothacking | -11 -10 -10 -10 -9 -8 -8 -7 -7 -7 -6 -6 -6 -6 -5 -4 -4 -4 -4 -4 -3 -3 -2 -1 ------------ Run | Jun Mat Min Exi Min Mat Sto Fac Low Low Fac Ext Cet Arc Fac Fac Was Fac Upp Upp Res Arm Res Acc Used RIF Installer . | . . . . . . . . . . . . . . . . . . . . . . . . Robots Hacked . | . . . . . . . . . . . . . . . . . . . . . . . . Non-combat . | . . . . . . . . . . . . . . . . . . . . . . . . Combat . | . . . . . . . . . . . . . . . . . . . . . . . . Robot Hacks Applied . | . . . . . . . . . . . . . . . . . . . . . . . . Relay Couplers Released . | . . . . . . . . . . . . . . . . . . . . . . . . Fabnet Peak Effective % . | . . . . . . . . . . . . . . . . . . . . . . . . Robots Rewired . | . . . . . . . . . . . . . . . . . . . . . . . . Allies Hacked . | . . . . . . . . . . . . . . . . . . . . . . . . Hacks Repelled . | . . . . . . . . . . . . . . . . . . . . . . . . Allies | -11 -10 -10 -10 -9 -8 -8 -7 -7 -7 -6 -6 -6 -6 -5 -4 -4 -4 -4 -4 -3 -3 -2 -1 -------- Run | Jun Mat Min Exi Min Mat Sto Fac Low Low Fac Ext Cet Arc Fac Fac Was Fac Upp Upp Res Arm Res Acc Total Allies 5 | . . . . . . 1 . . . . 4 . . . . . . . . . . . . Largest Group 2 | . . . . . . 1 . . . . 2 . . . . . . . . . . . . Highest-Rated Group 100 | . . . . . . 100 . . . . 70 . . . . . . . . . . . . Highest-Rated Ally 100 | . . . . . . 100 . . . . 39 . . . . . . . . . . . . Total Orders . | . . . . . . . . . . . . . . . . . . . . . . . . Ally Attacks 26 | . . . . . . 1 . . . . 25 . . . . . . . . . . . . Total Damage 462 | . . . . . . . . . . . 462 . . . . . . . . . . . . Kills 5 | . . . . . . . . . . . 5 . . . . . . . . . . . . Allies Corrupted . | . . . . . . . . . . . . . . . . . . . . . . . . Allies Melted . | . . . . . . . . . . . . . . . . . . . . . . . . Intel | -11 -10 -10 -10 -9 -8 -8 -7 -7 -7 -6 -6 -6 -6 -5 -4 -4 -4 -4 -4 -3 -3 -2 -1 ------- Run | Jun Mat Min Exi Min Mat Sto Fac Low Low Fac Ext Cet Arc Fac Fac Was Fac Upp Upp Res Arm Res Acc Robot Analysis Total 4 | . . . . . . 1 1 . . 1 . . . 1 . . . . . . . . . Derelict Logs Recovered 3 | . . . . . . . . 1 . . . . . . . . . 2 . . . . . Drone Launches . | . . . . . . . . . . . . . . . . . . . . . . . . Drone Recoveries . | . . . . . . . . . . . . . . . . . . . . . . . . Exploration | -11 -10 -10 -10 -9 -8 -8 -7 -7 -7 -6 -6 -6 -6 -5 -4 -4 -4 -4 -4 -3 -3 -2 -1 ------------- Run | Jun Mat Min Exi Min Mat Sto Fac Low Low Fac Ext Cet Arc Fac Fac Was Fac Upp Upp Res Arm Res Acc Turns Passed 7873 | 47 116 54 213 185 95 823 438 194 204 533 443 199 69 1345 14 46 397 166 62 338 1067 402 423 Spaces Moved 12162 | 38 163 137 258 262 141 518 869 658 756 1102 688 152 46 1247 44 134 678 558 200 653 1567 826 467 Core 281 | 23 . . . . . . . . . . . . . . . . . . . . . 132 126 Treads 118 | 15 26 . . . . . . . . . . . . . . . . . . . . . 77 Legs . | . . . . . . . . . . . . . . . . . . . . . . . . Wheels . | . . . . . . . . . . . . . . . . . . . . . . . . Hover . | . . . . . . . . . . . . . . . . . . . . . . . . Flight 11763 | . 137 137 258 262 141 518 869 658 756 1102 688 152 46 1247 44 134 678 558 200 653 1567 694 264 Fastest Speed 24 | 50 37 37 37 37 28 27 25 24 24 24 27 27 27 24 32 32 29 29 29 27 32 30 25 Average Speed 33 | 93 56 37 81 42 34 29 30 25 24 25 27 27 28 28 32 32 30 29 29 29 32 39 65 Slowest Speed 250 | 160 160 37 117 200 175 84 93 94 24 105 27 32 32 34 32 32 32 29 29 32 119 50 250 Overloaded Moves . | . . . . . . . . . . . . . . . . . . . . . . . . Propulsion Burnouts . | . . . . . . . . . . . . . . . . . . . . . . . . Robots Hopped 27 | . 2 1 . 2 1 2 1 . . 4 4 . . 2 . . . . . . 4 1 3 Cave-ins Triggered 4 | . . . . . . . . . . . . 2 1 . . . . . . . 1 . . Exploration Rate (%) 42 | 3 37 36 70 51 14 69 22 72 76 22 64 59 59 31 2 95 13 79 30 19 50 32 11 Regions Visited 23 Branch Regions 12 Pre-discovered Areas 2 | . . . . 1 . . . . . . . . . . . . . 1 . . . . . Known Exits Taken 4 | . 1 . . . . . . 1 . 1 1 . . . . . . . . . . . . Unknown Exits Taken 17 | 1 . 1 1 1 1 1 1 . 1 . . 1 1 1 . . 1 1 1 1 1 1 . Scrap Searched 11 | . . . . 1 . . . 3 3 . . . . . . . . 3 1 . . . . Spaces Dug 119 | . . . . . . . . 1 4 . 23 29 21 12 . . 4 1 1 4 19 . . Terrain Destroyed 164 | . . . . . 32 . . 1 4 . 23 29 21 12 . . 4 1 1 4 19 1 12 Melee 119 | . . . . . . . . 1 4 . 23 29 21 12 . . 4 1 1 4 19 . . Projectile 13 | . . . . . . . . . . . . . . . . . . . . . . 1 12 AOE 32 | . . . . . 32 . . . . . . . . . . . . . . . . . . Terrain Rammed . | . . . . . . . . . . . . . . . . . . . . . . . . Walls Destroyed . | . . . . . . . . . . . . . . . . . . . . . . . . Machines Disabled . | . . . . . . . . . . . . . . . . . . . . . . . . Actions | -11 -10 -10 -10 -9 -8 -8 -7 -7 -7 -6 -6 -6 -6 -5 -4 -4 -4 -4 -4 -3 -3 -2 -1 --------- Run | Jun Mat Min Exi Min Mat Sto Fac Low Low Fac Ext Cet Arc Fac Fac Was Fac Upp Upp Res Arm Res Acc Total 15548 | 48 177 139 261 324 176 1182 1033 675 772 1346 863 259 68 2198 44 135 851 559 201 787 2000 889 561 Wait 2742 | . . . . 51 17 632 145 1 7 214 51 73 . 899 . . 148 1 . 99 348 24 32 Move 12086 | 37 158 134 257 257 138 513 866 657 755 1093 679 151 44 1242 44 133 677 557 199 652 1559 823 461 Hop 24 | . 2 1 . 2 1 2 1 . . 4 4 . . 1 . . . . . . 2 1 3 Pick Up 76 | 5 5 1 1 2 5 9 2 3 1 5 1 . . 7 . 1 3 . 1 6 . 10 8 Fast Attach 65 | 3 1 1 . . 1 3 9 . 1 6 2 . . 6 . 1 7 . . 3 10 2 9 Attach 56 | 3 . . 1 2 4 5 . 2 . 1 . 2 . 5 . . 2 . . 4 3 9 13 Detach 20 | . 1 . 1 . . 3 1 . . . . . . 1 . . . . . 1 1 3 8 Swap 42 | . 2 . 1 . 2 2 . 4 1 8 3 . . 4 . . 2 . . 6 5 . 2 Drop 86 | . 4 2 . 1 . 6 7 2 3 13 5 . . 5 . . 5 . . 11 11 4 7 Fire 36 | . 4 . . . 7 . . . . . . . . . . . . . . . . 12 13 Melee 234 | . . . . 9 1 7 2 6 4 2 53 33 23 21 . . 7 1 1 5 59 . . Ram 7 | . . . . . . . . . . . . . . . . . . . . . 1 1 5 Kick . | . . . . . . . . . . . . . . . . . . . . . . . . Crush . | . . . . . . . . . . . . . . . . . . . . . . . . Escape Stasis 74 | . . . . . . . . . . . 65 . 1 7 . . . . . . 1 . . Rewire . | . . . . . . . . . . . . . . . . . . . . . . . . Trap . | . . . . . . . . . . . . . . . . . . . . . . . . Miscellaneous . | . . . . . . . . . . . . . . . . . . . . . . . . Route ------- -11/Junkyard -10/Materials -10/Mines -10/Exiles -9/Mines -8/Materials -8/Storage (discovered 2 exits: *Fac / Rec) -7/Factory (discovered 5 exits: *Fac x3 / [*Low x2]) -7/Lower Caves -7/Lower Caves -6/Factory (discovered 4 exits: Low x2 / *Ext x2) -6/Extension (discovered 2 exits: *Fac / *Cet) -6/Cetus (discovered 2 exits: *Fac / [*Arc]) -6/Archives -5/Factory (discovered 3 exits: [*Fac] / Upp x2) -4/Factory -4/Waste -4/Factory -4/Upper Caves -4/Upper Caves -3/Research -3/Armory -2/Research -1/Access History --------- Turn | Location | Event 12 | -11/Junkyard | Discovered new exit (range 15) 48 | -11/Junkyard | Entered Materials 131 | -10/Materials | Identified exit to Mines 164 | -10/Materials | Entered Mines 180 | -10/Mines | Found a damaged Exp. Sensor Array with a note attached 180 | -10/Mines | Found Prototype Device 180 | -10/Mines | Identified Exp. Sensor Array 216 | -10/Mines | Deemed a non-threat by the Exiles lab entrance 216 | -10/Mines | Discovered new exit (range 5) 218 | -10/Mines | Entered Exiles 229 | -10/Exiles | Met 8R-AWN 234 | -10/Exiles | Met EX-HEX 246 | -10/Exiles | Met EX-BIN 250 | -10/Exiles | Aligned with FarCom system 250 | -10/Exiles | Given EX-Vault access code 259 | -10/Exiles | Opened EX-Vault 262 | -10/Exiles | Found Prototype Energy Cannon 263 | -10/Exiles | Identified Gui. Plasma Cannon 291 | -10/Exiles | Warned to stay clear of 0b10 Research branches 305 | -10/Exiles | Build established: Mutant 354 | -10/Exiles | Met EX-DEC 422 | -10/Exiles | Discovered new exit (range 10) 431 | -10/Exiles | Left Exiles lab with Gui. Plasma Cannon 431 | -10/Exiles | Entered Mines 464 | -9/Mines | Assembled infested the area 466 | -9/Mines | A weapon hastily lodged in a ceiling crevice suddenly fell to the ground 469 | -9/Mines | Assisted by a Guerilla fighting off Assembled 547 | -9/Mines | Learned location of Storage (-8) 581 | -9/Mines | Discovered new exit (range 5) 616 | -9/Mines | Entered Materials 616 | -8/Materials | Evolved 4 slots: Propulsion x2, Utility x2 691 | -8/Materials | Discovered new exit (range 14) 711 | -8/Materials | Entered Storage 730 | -8/Storage | Lost 3 parts (3n) 753 | -8/Storage | Repaired Surge Thruster 795 | -8/Storage | Repaired Surge Thruster 799 | -8/Storage | Identified exit to Recycling 980 | -8/Storage | Build established: Sprinter 1124 | -8/Storage | Met 01-MTF 1378 | -8/Storage | Central database locked down 1451 | -8/Storage | Found 01-MTF's Shockpuncher 1454 | -8/Storage | Found Prototype Device 1459 | -8/Storage | Identified 01-MTF's Autohacker 1531 | -8/Storage | Discovered new exit (range 12) 1534 | -8/Storage | Entered Factory 1534 | -7/Factory | Evolved 2 slots: Power x1, Propulsion x1 1548 | -7/Factory | Discovered new exit (range 6) 1842 | -7/Factory | Discovered new exit (range 11) 1907 | -7/Factory | Discovered new exit (range 15) 1919 | -7/Factory | Discovered new exit (range 18) 1931 | -7/Factory | Discovered new exit (range 16) 1972 | -7/Factory | Entered Lower Caves 1984 | -7/Lower Caves | Encountered a Warlord checkpoint 1984 | -7/Lower Caves | Identified exit to Lower Caves 2034 | -7/Lower Caves | Spotted B-75 Beast 2048 | -7/Lower Caves | Remotely autohacked Sealed Heavy Doors 2093 | -7/Lower Caves | Attacked by a delusional Derelict stockpiling Unaware 2139 | -7/Lower Caves | Attracted the attention of an 0b10 outpost 2166 | -7/Lower Caves | Entered another Lower Caves area 2169 | -7/Lower Caves | Discovered new exit (range 4) 2370 | -7/Lower Caves | Entered Factory 2370 | -6/Factory | Evolved 2 slots: Utility x2 2578 | -6/Factory | Identified exit to Lower Caves 2578 | -6/Factory | Identified exit to Extension 2662 | -6/Factory | Build established: Hacker-Sprinter 2854 | -6/Factory | Fabricated Xenon Bombardment Thruster? 2903 | -6/Factory | Entered Extension 3020 | -6/Extension | Identified exit to Cetus 3068 | -6/Extension | Rescued a captive Derelict 3073 | -6/Extension | Rescued a captive Derelict 3189 | -6/Extension | Central database locked down 3270 | -6/Extension | Rescued a captive Derelict 3325 | -6/Extension | Rescued a captive Derelict 3339 | -6/Extension | Discovered new exit (range 10) 3346 | -6/Extension | Entered Cetus 3349 | -6/Cetus | Spotted Cetus Guard 3470 | -6/Cetus | Discovered new exit (range 22) 3518 | -6/Cetus | Crushed by falling debris 3519 | -6/Cetus | Crushed by falling debris 3527 | -6/Cetus | Spotted Cetus Guard 3529 | -6/Cetus | Spotted Cetus Guard 3530 | -6/Cetus | Spotted Cetus Guard 3531 | -6/Cetus | Cetus Manufacturing Module disabled 3539 | -6/Cetus | Discovered new exit (range 22) 3545 | -6/Cetus | Entered Archives 3550 | -6/Archives | Lost 4 parts (1p2n1w) 3595 | -6/Archives | Crushed by falling debris 3596 | -6/Archives | System corruption reached 10% 3613 | -6/Archives | Discovered new exit (range 4) 3614 | -6/Archives | Entered Factory 3614 | -5/Factory | Evolved 2 slots: Propulsion x1, Utility x1 3624 | -5/Factory | Identified exit to Upper Caves 3905 | -5/Factory | Repaired Lgt. Angular Momentum Engine 4214 | -5/Factory | Fabricated Xenon Bombardment Thruster (x2) 4329 | -5/Factory | Fabricated Cmb. Linear Gravjet? 4450 | -5/Factory | Fabricated Xenon Bombardment Thruster? 4683 | -5/Factory | Cargo convoy interrupted 4953 | -5/Factory | Discovered new exit (range 14) 4959 | -5/Factory | Entered another Factory area 4959 | -4/Factory | Evolved 2 slots: Utility x1, Weapon x1 4973 | -4/Factory | Discovered new exit (range 6) 4973 | -4/Factory | Sucked down chute 4973 | -4/Factory | Entered Waste 4974 | -4/Waste | Spotted C-40 Crusher 4976 | -4/Waste | Spotted C-40 Crusher 4987 | -4/Waste | Spotted C-40 Crusher 4988 | -4/Waste | EMP discharged 4989 | -4/Waste | Lost 5 parts (1p3n1u) 4997 | -4/Waste | Spotted C-40 Crusher 4997 | -4/Waste | Spotted C-40 Crusher 4997 | -4/Waste | Spotted C-40 Crusher 5016 | -4/Waste | Discovered new exit (range 10) 5019 | -4/Waste | Entered Factory 5078 | -4/Factory | Discovered new exit (range 21) 5271 | -4/Factory | Build established: Sprinter 5381 | -4/Factory | Repaired Broken Adv. Cloaking Device? 5416 | -4/Factory | Entered Upper Caves 5420 | -4/Upper Caves | Spotted B-86 Titan 5421 | -4/Upper Caves | Learned location of Armory (-3) 5430 | -4/Upper Caves | Attracted the attention of an 0b10 checkpoint 5543 | -4/Upper Caves | Learned Research security intel 5563 | -4/Upper Caves | Discovered new exit (range 8) 5582 | -4/Upper Caves | Entered another Upper Caves area 5587 | -4/Upper Caves | Discovered new exit (range 8) 5644 | -4/Upper Caves | Entered Research 5644 | -3/Research | Evolved 2 slots: Propulsion x1, Utility x1 5942 | -3/Research | Discovered new exit (range 9) 5945 | -3/Research | Found Prototype Device 5945 | -3/Research | Identified Exp. Thermal Shield 5982 | -3/Research | Entered Armory 5988 | -3/Armory | Found Enh. Force Lance 5990 | -3/Armory | Found Enh. Force Lance 5992 | -3/Armory | Found Enh. Force Lance 6035 | -3/Armory | Found Prototype Processor 6035 | -3/Armory | Identified Exp. Terrain Scan Processor 6044 | -3/Armory | Found Prototype Slashing Weapon 6044 | -3/Armory | Identified Centrium Greatsword 6773 | -3/Armory | Spotted B-86 Titan 6837 | -3/Armory | Found Centrium Greatsword 6867 | -3/Armory | System corruption reached 10% 7013 | -3/Armory | Crushed by falling debris 7014 | -3/Armory | System corruption reached 30% 7048 | -3/Armory | Discovered new exit (range 2) 7049 | -3/Armory | Entered Research 7049 | -2/Research | Evolved 2 slots: Propulsion x1, Weapon x1 7077 | -2/Research | Lost 7 parts (2n3u2w) 7134 | -2/Research | Found Prototype Launcher 7135 | -2/Research | Identified Tesla Bomb Launcher 7211 | -2/Research | Lost 5 parts (1p1n3u) 7326 | -2/Research | Build established: Mutant 7327 | -2/Research | Search patrols dispatched 7348 | -2/Research | Spotted B-90 Cyclops 7360 | -2/Research | Lost 4 parts (1p2u1w) 7385 | -2/Research | Core integrity fell below 50% 7415 | -2/Research | Lost 5 parts (1p2n2u) 7441 | -2/Research | Core integrity fell below 20% 7443 | -2/Research | Discovered new exit (range 12) 7451 | -2/Research | Entered Access 7451 | -1/Access | Evolved 2 slots: Power x1, Weapon x1 7831 | -1/Access | Core integrity fell below 50% 7849 | -1/Access | Spotted B-99 Colossus 7869 | -1/Access | Core integrity fell below 20% 7874 | -1/Access | Destroyed by P-80 Master with Gamma Rifle Last Messages --------------- 07833_ Slug penetrates Wall. 07833_ Penetrated by Slug. 07833_ Slug penetrates Wall. 07835_ Acquired Lgt. Particle Reactor. 07838_ Slug penetrates Wall. 07839_ Acquired Myomer Leg. 07843_ System corrupted: Matter fused (-7). 07843_ Acquired Myomer Leg. 07843_ Slug penetrates Wall. 07844_ Lgt. Particle Reactor destroyed. 07844_ Dropped Myomer Leg. 07848_ K-01 Serf destroyed. 07850_ Slug penetrates Door. 07860_ P-80 Master resets T-07 Excavator, system corruption cleaned. 07863_ Anti-Orbital Battery disabled. 07873_ Penetrated by Slug. 07873_ Slug penetrates G-73 Enforcer. 07873_ Slammed into P-80 Master. 07874_ Penetrated by Slug. 07874_ Slug penetrates P-80 Master. Map ----- +----------------------------------------------------+ | ?????????????????????????????????????????????????? | | ?????????????????????????????????????????????????? | | ?????????????????????????????????????????????????? | | ?????????????????????????????????????????????????? | | ?????????????????????????????????????????????????? | | ?????????????????????????????????????????????????? | | ?????????????? ????????????????????????????????? | | ???????????? ????????????????????????????????? | | ????????? #???????????????????????????????? | | ?????? =!!BB??????????????????????????????? | | "????"" !! BB??????????????????????????????? | | "???""" !! #???????????????????????????????? | | "???""" #???????????????????????????????? | | ?"""" #???????????????????????????????? | | """"""" #???????????????????????????????? | | """"""" #???????????????????????????????? | | """ """ #???????????????????????????????? | | ##############??????????????????? | | # "" #??????????????????? | | # "" #???Y??????????????? | | # """" #??????????????????? | | %! h """" #??????????????????? | | **= h #h """" #??????????????????? | | **= g # g """" #??????????????????? | | == b # """"p #??????????????????? | | ################## h"hg@p #??????????????????? | | #????????# t h p #??????????????????? | | #????????# #??????????????????? | | #????????# #??????????????????? | | #????????# #??????????????????? | | #????????##############???????w??????????? | | ! #????????????????????????????????????????? | | #????????????????????????????????????????? | | """"" #????????????????????????????????????????? | | """"" #????????????????????????????????????????? | | """"" #????????????????????????????????????????? | | """"" #????????????????????????????????????????? | | """???? #????????????????????????????????????????? | | ###??????????????????????????????????????????????? | | ?????????????????????????????????????????????????? | | ?????????????????????????????????????????????????? | | ??????????????????????###????????????????????????? | | ?????#############+#? ????????????????????????? | | ##???# +? ?????????????????????????? | | #???# # ??????????????????????????? | | #???# # ???????????????????????????? | | #???# + ????????????????????????????? | | #???# #?????????????????????????????? | | #???# #?????????????????????????????? | | #???# #?????????????????????????????? | +----------------------------------------------------+ Best States ------------- Heat Dissipation 68 Coolant Potential 80 Energy Generation 59 Energy Capacity 670 Matter Stores 300 Matter Capacity 300 Sight Range 22 Terrain Scan Density 10 Additional Mass Support 9 Armor Coverage 300 Resistance: KI 30 Propulsion Shielding 66 Melee Speed Boost 20 Evasion (%) 76 Melee Accuracy 8 Recoil Reduction 2 Offensive Hacking 14 Defensive Hacking 22 Item Schematics ----------------- Adv. Thermal Shield | -6/Factory | Scanalyzed Xenon Bombardment Thruster | -6/Factory | Scanalyzed Imp. Propulsion Shielding | -6/Factory | Scanalyzed Imp. Shield Generator | -6/Factory | Scanalyzed Microactuators | -6/Factory | Scanalyzed Robot Schematics ------------------ None Fabricated ------------ Xenon Bombardment Thruster | x2 | -6/Factory Xenon Bombardment Thruster | x2 | -5/Factory Cmb. Linear Gravjet | x2 | -5/Factory | Preloaded Xenon Bombardment Thruster | x2 | -5/Factory Alien Tech Used ----------------- None Achievements -------------- Can't Catch Me Dangerous Findings Deadly Force Denied? Dodgeball, But With Guns Explorer Oh No You Don't! Part-time Excavator Prolific Hacker Challenges ------------ None Game ------ Seed FortressThrusterMapper Manual? 0 Play Time 02:17:17 Cumulative 41.7 hours Start 2023.10.09 @ 17:32:37 End 2023.10.09 @ 19:52:06 Sessions 1 Manual Loads 0 Difficulty Rogue Special Mode None Game No. 73 Rogue 70 Adventurer 3 Explorer 0 Win Type - Total 0 Types 0/0/0/0/0/0/0/0/0 Lore% 24 Gallery% 41 Achievement% 30 Wizard Run 0 Options --------- ASCII 0 Keyboard 0 Movement Mouse Keybinds 0 Fullscreen 2 Font 18/SmallcapsGlow Map View 76x50 Tactical HUD 1 Map Filters NONE Filters NONE Steam 1 RUN: 28fffd25-fe8b-4431-9abf-a983cc6c471a